bitfinex-derivatives/quotes_BTCF0:USTF0_20250822
["timestamp","ask_amount","ask_price","bid_price","bid_amount"]
[1755852028548,0.19660783,113170.0,113160.0,0.10406]
[1755852028738,0.47516977,113170.0,113160.0,0.11848]
[1755852029147,0.47516977,113170.0,113160.0,0.11948]
[1755852029845,0.75373171,113170.0,113160.0,0.11948]
[1755852030251,0.75373171,113170.0,113160.0,0.10506]
[1755852030450,0.75373171,113170.0,113160.0,0.07184]
[1755852031553,0.93949171,113170.0,113160.0,0.07184]
[1755852032656,0.76277171,113170.0,113160.0,0.02467]
[1755852032855,0.93949171,113170.0,113160.0,0.02467]
[1755852033052,0.76277171,113170.0,113160.0,0.002]
[1755852033250,0.93949171,113170.0,113160.0,0.002]
[1755852036860,0.93947496,113170.0,113160.0,0.002]
[1755852039048,1.2180369,113170.0,113160.0,0.002]
[1755852039360,0.93947496,113170.0,113160.0,0.002]
[1755852040358,1.00309024,113170.0,113160.0,0.002]
[1755852042263,1.00309024,113170.0,113160.0,0.001]
[1755852042655,1.00309024,113170.0,113150.0,3.02267]
[1755852042862,1.54836388,113160.0,113150.0,3.02267]
[1755852043052,1.56823496,113160.0,113150.0,3.02267]
[1755852043757,1.6700769,113160.0,113150.0,3.02267]
[1755852043959,1.8467969,113160.0,113150.0,3.02367]
[1755852044155,1.56823496,113160.0,113150.0,3.02467]
[1755852044557,1.56823496,113160.0,113150.0,3.05789]
[1755852044763,1.56823496,113160.0,113150.0,3.07231]
[1755852044962,1.6700769,113160.0,113150.0,3.02467]
[1755852045262,1.8467969,113160.0,113150.0,3.02467]
[1755852045565,1.8467969,113160.0,113150.0,3.02367]
[1755852045766,1.8467969,113160.0,113150.0,3.02467]
[1755852046260,1.9795169,113160.0,113150.0,3.05789]
[1755852046465,1.9795169,113160.0,113150.0,3.07231]
[1755852047868,1.9795169,113160.0,113150.0,3.03909]
[1755852048066,1.9795169,113160.0,113150.0,3.07127]
[1755852049063,1.9795169,113160.0,113150.0,3.03909]
[1755852049470,1.9795169,113160.0,113150.0,3.07127]
[1755852053674,1.9795169,113160.0,113150.0,3.02467]
[1755852053973,1.9795169,113160.0,113150.0,3.07122]
[1755852054471,2.4795169,113160.0,113150.0,3.07122]
[1755852054775,2.4795169,113160.0,113150.0,3.06922]
[1755852055782,2.4805169,113160.0,113150.0,3.06922]
[1755852056778,2.4815169,113160.0,113150.0,3.06922]
[1755852059078,2.3047969,113160.0,113150.0,3.06922]
[1755852059376,2.4815169,113160.0,113150.0,3.06922]
[1755852059974,2.4813569,113160.0,113150.0,3.06922]
[1755852060177,0.83131108,113160.0,113150.0,3.06922]
[1755852060480,2.02607496,113160.0,113150.0,3.07002]
[1755852060672,2.02607496,113160.0,113150.0,3.34858194]
[1755852060873,2.02607496,113160.0,113150.0,3.07002]
[1755852061181,2.02607496,113160.0,113150.0,3.06922]
[1755852061372,1.52607496,113160.0,113150.0,3.06922]
[1755852062876,1.9813569,113160.0,113150.0,3.06922]
[1755852063380,1.70279496,113160.0,113150.0,3.06922]
[1755852065374,1.63369024,113160.0,113150.0,3.06922]
[1755852065774,1.45697024,113160.0,113150.0,3.06922]
[1755852065974,0.83623108,113160.0,113150.0,3.06922]
[1755852066275,1.57007496,113160.0,113150.0,3.06922]
[1755852066470,1.39335496,113160.0,113150.0,3.06922]
[1755852066674,1.57007496,113160.0,113150.0,3.06922]
[1755852070690,1.6336188,113160.0,113150.0,3.06922]
[1755852070888,1.57007496,113160.0,113150.0,3.06922]
[1755852072887,1.8486369,113160.0,113150.0,3.06922]
[1755852082984,1.01295108,113160.0,113150.0,3.06922]
[1755852083184,1.8486369,113160.0,113150.0,3.06922]
[1755852083393,1.57007496,113160.0,113150.0,3.06922]
[1755852086397,1.8486369,113160.0,113150.0,3.06922]
[1755852088292,1.6719169,113160.0,113150.0,2.8925]
[1755852089599,2.1719169,113160.0,113150.0,2.8925]
[1755852089797,2.1719169,113160.0,113150.0,2.86032]
[1755852089991,2.23546971,113160.0,113150.0,2.89476]
[1755852093498,3.42031719,113160.0,113150.0,1.51965292]
[1755852093704,3.42031719,113160.0,113150.0,1.47506088]
[1755852094404,3.42031719,113160.0,113150.0,0.88891079]
[1755852094608,3.42031719,113160.0,113150.0,0.91043079]
[1755852095105,3.42331719,113160.0,113150.0,0.91043079]
[1755852095305,2.58763137,113160.0,113150.0,0.91043079]
[1755852095508,2.33763137,113160.0,113150.0,0.91043079]
[1755852096903,2.33763137,113160.0,113150.0,0.88891079]
[1755852098414,2.33763137,113160.0,113150.0,0.54122439]
[1755852098606,2.59832586,113160.0,113150.0,0.54122439]
[1755852098906,0.03341,113150.0,113140.0,0.06099]
[1755852099109,0.95622672,113150.0,113140.0,0.02558]
[1755852099409,0.06079,113130.0,113120.0,0.24911353]
[1755852099611,1.50734496,113130.0,113120.0,0.24911353]
[1755852100507,1.60828413,113130.0,113120.0,0.07236353]
[1755852100721,1.68033574,113130.0,113120.0,0.07236353]
[1755852100918,1.68033574,113130.0,113120.0,0.09546353]
[1755852101123,1.68033574,113130.0,113120.0,0.11135353]
[1755852101421,2.18033574,113130.0,113120.0,0.11135353]
[1755852101612,2.18033574,113130.0,113120.0,0.11035353]
[1755852102827,2.31129574,113130.0,113120.0,0.11135353]
[1755852104022,2.32207431,113130.0,113120.0,0.11135353]
[1755852106227,2.32200813,113130.0,113120.0,0.11135353]
[1755852106429,2.38530754,113130.0,113120.0,0.11135353]
[1755852107421,4.06702754,113130.0,113120.0,0.11135353]
[1755852107924,4.06702754,113130.0,113120.0,0.0722]
[1755852109226,4.00372813,113130.0,113120.0,0.0722]
[1755852109527,4.36180917,113130.0,113120.0,0.02352]
[1755852109734,4.08324723,113130.0,113120.0,0.002]
[1755852111329,4.01341723,113130.0,113110.0,0.17558123]
[1755852111531,0.75851221,113120.0,113110.0,0.40595123]
[1755852111732,0.77831711,113120.0,113110.0,0.40595123]
[1755852111930,1.05687905,113120.0,113110.0,0.19566123]
[1755852112134,1.05687905,113120.0,113110.0,0.17475123]
[1755852112331,0.77831711,113120.0,113110.0,0.38504123]
[1755852112730,0.77831711,113120.0,113110.0,0.40595123]
[1755852113334,1.27831711,113120.0,113110.0,0.40995123]
[1755852114133,1.2783101,113120.0,113110.0,0.40995123]
[1755852114934,1.3880301,113120.0,113110.0,0.40995123]
[1755852115530,1.32473177,113120.0,113110.0,0.40995123]
[1755852117733,0.76760789,113120.0,113110.0,0.40995123]
[1755852117938,2.13869177,113120.0,113110.0,0.40995123]
[1755852120537,1.86052139,113120.0,113110.0,0.40995123]
[1755852123926,1.86052139,113120.0,113110.0,0.37641123]
[1755852124231,1.86052139,113120.0,113110.0,0.40995123]
[1755852124633,1.75080139,113120.0,113110.0,0.40995123]
[1755852125441,0.65788789,113120.0,113110.0,0.23320123]
[1755852125635,1.75180139,113120.0,113110.0,0.23320123]
[1755852125934,0.62704789,113120.0,113110.0,0.51215473]
[1755852126240,0.53353789,113120.0,113110.0,0.51215473]
[1755852126545,0.51979789,113120.0,113110.0,0.68890473]
[1755852126736,0.01979789,113120.0,113110.0,0.76295473]
[1755852126940,1.76455018,113130.0,113120.0,0.11352]
[1755852127237,0.01077857,113130.0,113120.0,0.4238935]
[1755852127444,0.67019,113130.0,113120.0,0.6194435]
[1755852127744,0.56412631,113130.0,113120.0,0.6194435]
[1755852128045,0.77300631,113130.0,113120.0,0.3694435]
[1755852128539,0.80724631,113130.0,113120.0,0.09249]
[1755852128735,0.84344631,113130.0,113120.0,0.3706435]
[1755852129040,0.88732517,113130.0,113120.0,0.3706435]
[1755852129242,0.88732517,113130.0,113120.0,0.3716435]
[1755852130245,0.67844517,113130.0,113120.0,0.3716435]
[1755852130547,0.69482517,113130.0,113120.0,0.3716435]
[1755852130842,0.71525517,113130.0,113120.0,0.3716435]
[1755852132539,0.70443631,113130.0,113120.0,0.3716435]
[1755852133138,0.12743631,113130.0,113120.0,0.3716435]
[1755852133447,0.92165631,113130.0,113120.0,0.3716435]
[1755852133846,0.92157631,113130.0,113120.0,0.3716435]
[1755852135948,0.94403631,113130.0,113120.0,0.3716435]
[1755852136548,0.95745631,113130.0,113120.0,0.3716435]
[1755852136746,0.0567,113130.0,113120.0,0.6417137]
[1755852136954,0.85028,113130.0,113120.0,0.732489]
[1755852138452,0.8726,113130.0,113120.0,0.732489]
[1755852138950,0.89218663,113130.0,113120.0,0.732489]
[1755852139154,0.86986663,113130.0,113120.0,0.732489]
[1755852139652,0.89218663,113130.0,113120.0,0.732489]
[1755852139854,0.86986663,113130.0,113120.0,0.732489]
[1755852140154,0.86986424,113130.0,113120.0,0.732489]
[1755852140955,0.89218424,113130.0,113120.0,0.732489]
[1755852141960,0.90720424,113130.0,113120.0,0.732489]
[1755852142556,0.05382424,113130.0,113120.0,1.0114425]
[1755852142748,0.87086424,113130.0,113120.0,0.732489]
[1755852143257,0.89318424,113130.0,113120.0,0.732489]
[1755852143556,0.90820424,113130.0,113120.0,0.732489]
[1755852144455,0.94102424,113130.0,113120.0,0.732489]
[1755852144953,0.97951424,113130.0,113120.0,0.732489]
[1755852145252,0.92458424,113130.0,113120.0,0.732489]
[1755852145454,0.90820424,113130.0,113120.0,0.732489]
[1755852145754,0.05382424,113130.0,113120.0,0.732489]
[1755852145951,0.05382424,113130.0,113120.0,1.0114425]
[1755852146258,0.05382424,113130.0,113120.0,0.4535355]
[1755852146457,0.05382424,113130.0,113120.0,1.0114425]
[1755852146758,0.07614424,113130.0,113120.0,0.732489]
[1755852147157,0.05382424,113130.0,113120.0,0.732489]
[1755852147656,0.07614424,113130.0,113120.0,1.0114425]
[1755852147856,0.09116424,113130.0,113120.0,1.0114425]
[1755852148260,0.09116424,113130.0,113120.0,0.732489]
[1755852148453,0.12398424,113130.0,113120.0,0.732489]
[1755852148654,0.12398424,113130.0,113120.0,0.735489]
[1755852149055,0.12398424,113130.0,113120.0,0.4565355]
[1755852149260,0.16918424,113130.0,113120.0,0.735489]
[1755852151059,0.16918424,113130.0,113120.0,0.4565355]
[1755852151260,0.16918424,113130.0,113120.0,0.735489]
[1755852152354,0.79270513,113140.0,113130.0,0.04823]
[1755852152658,0.85313513,113140.0,113130.0,0.4340335]
[1755852153459,0.06043,113140.0,113130.0,0.8013944]
[1755852153654,0.01087098,113150.0,113130.0,0.8013944]
[1755852153655,0.06043,113150.0,113140.0,0.2434785]
[1755852153961,0.06043,113150.0,113140.0,0.6108305]
[1755852154558,0.13055,113150.0,113140.0,0.2434785]
[1755852154861,0.15266,113150.0,113140.0,0.522432]
[1755852155062,0.15366,113150.0,113140.0,0.522432]
[1755852155456,0.15466,113150.0,113140.0,0.522432]
[1755852157358,0.15466,113150.0,113140.0,0.2434785]
[1755852157562,0.15466,113150.0,113140.0,0.522432]
[1755852157950,0.15366,113150.0,113140.0,0.522432]
[1755852158156,0.15266,113150.0,113140.0,0.523432]
[1755852159560,0.09773,113150.0,113140.0,0.523432]
[1755852160262,0.09773,113150.0,113140.0,0.54326021]
[1755852160465,0.09773,113150.0,113140.0,0.26430671]
[1755852160762,0.09773,113150.0,113140.0,0.54326021]
[1755852161459,0.13055,113150.0,113140.0,0.54326021]
[1755852161865,0.13055,113150.0,113140.0,0.45486171]
[1755852162164,0.15266,113150.0,113140.0,0.45486171]
[1755852162559,0.15266,113150.0,113140.0,0.54326131]
[1755852163954,0.09773,113150.0,113140.0,0.54326131]
[1755852164367,0.11713018,113150.0,113140.0,0.54326131]
[1755852165661,0.14995018,113150.0,113140.0,0.45486171]
[1755852166266,0.17206018,113150.0,113140.0,0.45486171]
[1755852166863,0.17206018,113150.0,113140.0,0.54326131]
[1755852167267,0.13924018,113150.0,113140.0,0.54326131]
[1755852167770,0.17354018,113150.0,113140.0,0.54326131]
[1755852169657,0.17354018,113150.0,113140.0,0.56253082]
[1755852170762,0.17354018,113150.0,113140.0,0.54326131]
[1755852170963,0.17354018,113150.0,113140.0,0.45486171]
[1755852171163,0.17354018,113150.0,113140.0,0.54326131]
[1755852171672,0.17354018,113150.0,113140.0,0.45486171]
[1755852171877,0.17354018,113150.0,113140.0,0.54326131]
[1755852172069,0.05241,113160.0,113150.0,0.2277918]
[1755852172271,0.05241,113160.0,113150.0,0.8008288]
[1755852172474,0.12156,113170.0,113160.0,0.221234]
[1755852172777,0.09851,113170.0,113160.0,0.800821]
[1755852173774,0.03656,113170.0,113160.0,0.800821]
[1755852174077,0.03856,113170.0,113160.0,0.800821]
[1755852174280,0.01626,113170.0,113160.0,0.800821]
[1755852174475,0.03856,113170.0,113160.0,0.800821]
[1755852174980,0.07671,113170.0,113160.0,0.800821]
[1755852175379,0.07671,113170.0,113160.0,0.802821]
[1755852176482,0.07471,113170.0,113160.0,0.803821]
[1755852176882,0.10901,113170.0,113160.0,0.803821]
[1755852177174,0.02305,113180.0,113160.0,0.9805862]
[1755852177175,0.0955,113180.0,113160.0,0.9805862]
[1755852177476,0.15586,113180.0,113170.0,0.4334835]
[1755852177678,0.33266,113180.0,113170.0,0.4334835]
[1755852179079,0.15586,113180.0,113170.0,0.4334835]
[1755852179286,0.33266,113180.0,113170.0,0.4334835]
[1755852180880,0.29836,113180.0,113170.0,0.4334835]
[1755852181083,0.09851,113180.0,113170.0,0.5218597]
[1755852181777,0.15329154,113190.0,113180.0,0.09245]
[1755852181982,0.35239154,113190.0,113180.0,0.4334835]
[1755852183182,0.35339154,113190.0,113180.0,0.4334835]
[1755852183381,0.35439154,113190.0,113180.0,0.4334835]
[1755852183885,1.16943154,113190.0,113180.0,0.4334835]
[1755852184089,1.18873169,113190.0,113180.0,0.4334835]
[1755852184387,1.16900015,113190.0,113180.0,0.4334835]
[1755852185079,0.35396015,113190.0,113180.0,0.4334835]
[1755852188088,0.37319336,113190.0,113180.0,0.4334835]
[1755852190794,1.18763336,113190.0,113180.0,0.4334835]
[1755852193298,0.37319336,113190.0,113180.0,0.4334835]
[1755852193498,1.18719336,113190.0,113180.0,0.4334835]
[1755852193700,1.18719336,113190.0,113180.0,0.4019435]
[1755852193894,1.18719336,113190.0,113180.0,0.4334835]
[1755852199810,1.18719336,113190.0,113180.0,0.15453]
[1755852200018,1.18719336,113190.0,113180.0,0.4334835]
[1755852202512,1.18719077,113190.0,113180.0,0.4334835]
[1755852204215,1.18719077,113190.0,113180.0,0.15453]
[1755852204514,1.18719077,113190.0,113180.0,0.4334835]
[1755852206615,1.18719077,113190.0,113180.0,0.15453]
[1755852206817,1.18719077,113190.0,113180.0,0.4334835]
[1755852208318,1.18719077,113190.0,113180.0,0.71148332]
[1755852210718,1.18899077,113190.0,113180.0,0.71148332]
[1755852211820,1.18899077,113190.0,113180.0,0.15453]
[1755852212021,1.18899077,113190.0,113180.0,0.71148332]
[1755852214525,1.00052533,113190.0,113180.0,0.71148332]
[1755852214914,1.06388533,113190.0,113180.0,0.65751332]
[1755852215220,1.40566032,113190.0,113180.0,0.27847666]
[1755852215522,1.34236199,113190.0,113180.0,0.27847666]
[1755852216015,1.08354164,113190.0,113180.0,0.27847666]
[1755852216216,1.3620183,113190.0,113180.0,0.55695332]
[1755852216416,1.08354164,113190.0,113180.0,0.27853637]
[1755852216623,1.15842164,113190.0,113180.0,0.27853637]
[1755852217423,1.15842164,113190.0,113180.0,0.31467637]
[1755852218825,1.08354164,113190.0,113170.0,0.35769021]
[1755852219122,0.31504,113180.0,113170.0,0.39443021]
[1755852219324,0.31504,113180.0,113170.0,0.45310021]
[1755852219918,0.31504,113180.0,113170.0,0.45510021]
[1755852220421,0.13824,113180.0,113170.0,0.02202384]
[1755852220724,0.31504,113180.0,113170.0,0.02202384]
[1755852221124,0.31504,113180.0,113170.0,0.05816384]
[1755852221514,0.31504,113180.0,113170.0,0.05716384]
[1755852221718,0.31504,113180.0,113170.0,0.33670021]
[1755852223221,0.31504,113180.0,113170.0,0.35882021]
[1755852223528,0.31504,113180.0,113170.0,0.37344021]
[1755852224027,0.31504,113180.0,113170.0,0.43211021]
[1755852224222,0.31504,113180.0,113170.0,0.45510021]
[1755852226627,0.33437507,113180.0,113170.0,0.45510021]
[1755852227933,0.33437507,113180.0,113170.0,0.17656384]
[1755852228136,0.33437507,113180.0,113170.0,0.45510021]
[1755852236124,0.33437507,113180.0,113170.0,0.14204384]
[1755852236125,0.61291144,113180.0,113170.0,0.14204384]
[1755852236325,0.09162,113170.0,113160.0,0.02089]
[1755852236532,1.06435507,113170.0,113160.0,0.03698]
[1755852236825,1.06435507,113170.0,113160.0,0.11305]
[1755852237025,1.06435507,113170.0,113160.0,0.09216]
[1755852237231,1.06435507,113170.0,113160.0,0.01461]
[1755852237426,1.06435507,113170.0,113160.0,0.03698]
[1755852237627,1.06435507,113170.0,113160.0,0.31551637]
[1755852237839,1.06435507,113170.0,113160.0,0.34703637]
[1755852238238,1.06435507,113170.0,113160.0,0.0695]
[1755852238439,1.06435507,113170.0,113160.0,0.3481439]
[1755852238440,1.34299897,113170.0,113160.0,0.3481439]
[1755852238740,1.3429894,113170.0,113160.0,0.3481439]
[1755852238940,1.3429894,113170.0,113160.0,0.3471439]
[1755852239239,1.3439894,113170.0,113160.0,0.3471439]
[1755852239641,1.3439894,113170.0,113160.0,0.3156239]
[1755852240436,1.34400645,113170.0,113160.0,0.03698]
[1755852240641,1.0653455,113170.0,113160.0,0.03698]
[1755852241040,0.9737255,113170.0,113150.0,0.38574618]
[1755852241345,0.23022,113160.0,113150.0,0.44638618]
[1755852241643,0.2495455,113160.0,113150.0,0.44638618]
[1755852248146,0.1948155,113160.0,113150.0,0.44638618]
[1755852248642,0.0193255,113160.0,113150.0,0.81343883]
[1755852248846,0.0193255,113160.0,113150.0,0.81423883]
[1755852250446,0.0193255,113160.0,113150.0,0.81523883]
[1755852250947,0.0193255,113160.0,113150.0,0.81623883]
[1755852251548,0.0193255,113160.0,113150.0,0.81523883]
[1755852251844,0.0193255,113160.0,113150.0,0.81623883]
[1755852253243,0.0193255,113160.0,113150.0,0.44838618]
[1755852253445,0.1508655,113160.0,113150.0,0.44838618]
[1755852254846,0.1170455,113160.0,113150.0,0.44838618]
[1755852256446,0.0193255,113160.0,113150.0,0.44838618]
[1755852257546,0.0787755,113160.0,113150.0,0.44838618]
[1755852260450,0.0787755,113160.0,113150.0,0.72690251]
[1755852261150,0.0932755,113160.0,113150.0,0.72690251]
[1755852261451,0.1505155,113160.0,113150.0,0.72690251]
[1755852262049,0.0558355,113160.0,113150.0,0.72690251]
[1755852262851,0.87236,113180.0,113150.0,1.34388285]
[1755852263054,0.07777,113170.0,113160.0,0.43078864]
[1755852263753,0.7356966,113180.0,113160.0,0.33894864]
[1755852263951,0.8302366,113180.0,113170.0,0.1522]
[1755852264152,0.8519666,113180.0,113170.0,0.70937728]
[1755852264453,0.8519666,113180.0,113170.0,0.43073115]
[1755852265357,0.9669,113180.0,113170.0,0.43073115]
[1755852265852,0.9679,113180.0,113170.0,0.43073115]
[1755852266055,0.15378,113180.0,113170.0,0.43073115]
[1755852266255,0.9679,113180.0,113170.0,0.43073115]
[1755852266647,0.9689,113180.0,113170.0,0.43073115]
[1755852273865,0.15478,113180.0,113170.0,0.43073115]
[1755852274164,0.002,113180.0,113170.0,0.7984384]
[1755852274461,0.002,113180.0,113170.0,0.51990725]
[1755852274655,0.002,113180.0,113170.0,0.88070725]
[1755852275058,0.0213488,113180.0,113170.0,0.88070725]
[1755852275249,0.0203488,113180.0,113170.0,0.88070725]
[1755852275962,0.0203488,113180.0,113170.0,0.91629164]
[1755852276362,0.0193488,113180.0,113170.0,0.88070725]
[1755852278363,0.0193488,113180.0,113170.0,0.87990725]
[1755852280967,0.0786588,113180.0,113170.0,0.87990725]
[1755852281261,0.0421488,113180.0,113170.0,0.87990725]
[1755852281869,0.0193488,113180.0,113170.0,0.87990725]
[1755852289769,0.3608,113190.0,113170.0,1.05665525]
[1755852289971,0.3608,113190.0,113180.0,0.43280115]
[1755852290169,0.46144,113190.0,113180.0,0.45287599]
[1755852290372,0.51602,113190.0,113180.0,0.45287599]
[1755852291578,0.51602,113190.0,113180.0,0.45291599]
[1755852293168,0.51702,113190.0,113180.0,0.45291599]
[1755852293368,0.51802,113190.0,113180.0,0.45291599]
[1755852294266,0.51802,113190.0,113180.0,0.73126898]
[1755852294775,0.48563,113190.0,113180.0,1.00971105]
[1755852294975,0.51802,113190.0,113180.0,1.00971105]
[1755852296677,0.51802,113190.0,113180.0,0.73126898]
[1755852297272,0.48563,113190.0,113180.0,1.09807935]
[1755852297473,0.46344,113190.0,113180.0,1.09807935]
[1755852298287,0.46344,113190.0,113180.0,1.00971105]
[1755852298477,0.51802,113190.0,113180.0,1.00971105]
[1755852298777,0.51802,113190.0,113180.0,0.73126898]
[1755852299574,0.51802,113190.0,113180.0,0.11767484]
[1755852299771,0.79646207,113190.0,113180.0,0.33748691]
[1755852299970,1.15726207,113190.0,113180.0,0.31363691]
[1755852300175,1.99010207,113190.0,113180.0,0.29855691]
[1755852300382,1.99090207,113190.0,113180.0,0.02011484]
[1755852300677,2.24090207,113190.0,113180.0,0.02011484]
[1755852300879,2.49007247,113190.0,113160.0,0.27844207]
[1755852301184,0.87682,113170.0,113160.0,0.01998287]
[1755852301368,1.70938,113170.0,113160.0,0.29842494]
[1755852301573,1.98782207,113170.0,113160.0,0.32102494]
[1755852301781,2.00707481,113170.0,113160.0,0.33610494]
[1755852301983,2.00707481,113170.0,113160.0,0.05866287]
[1755852302184,2.00707481,113170.0,113160.0,0.32302494]
[1755852302483,1.72863274,113170.0,113160.0,0.04358287]
[1755852302682,1.72863274,113170.0,113160.0,0.04458287]
[1755852302881,1.72863274,113170.0,113160.0,0.32322411]
[1755852304980,1.72863274,113170.0,113160.0,0.04458287]
[1755852305186,1.72863274,113170.0,113160.0,0.02198287]
[1755852306181,1.70938,113170.0,113160.0,0.02198287]
[1755852306387,1.72906737,113170.0,113160.0,0.02198287]
[1755852306686,2.00770861,113170.0,113160.0,0.02198287]
[1755852307287,1.72906737,113170.0,113160.0,0.02198287]
[1755852308892,1.70938,113170.0,113160.0,0.02198287]
[1755852310587,1.72905328,113170.0,113160.0,0.02198287]
[1755852312293,1.97905328,113170.0,113160.0,0.02198287]
[1755852312480,2.25769452,113170.0,113160.0,0.02198287]
[1755852315894,2.42045452,113170.0,113160.0,0.02198287]
[1755852317994,2.14181328,113170.0,113160.0,0.02198287]
[1755852318303,2.42045452,113170.0,113160.0,0.02198287]
[1755852319191,2.14181328,113170.0,113160.0,0.02198287]
[1755852321493,2.42045452,113170.0,113160.0,0.02198287]
[1755852322700,2.14181328,113170.0,113160.0,0.02198287]
[1755852326097,2.42045452,113170.0,113160.0,0.02198287]
[1755852330103,2.14181328,113170.0,113160.0,0.02198287]
[1755852330402,2.42045452,113170.0,113160.0,0.02198287]
[1755852330790,2.23100116,113170.0,113160.0,0.02198287]
[1755852334101,1.95235992,113170.0,113160.0,0.02198287]
[1755852334296,2.23100116,113170.0,113160.0,0.02198287]
[1755852336003,0.02177,113160.0,113140.0,0.67446579]
[1755852336304,1.61814042,113150.0,113140.0,0.27875042]
[1755852336499,1.6378137,113150.0,113140.0,0.27875042]
[1755852336694,1.6378137,113150.0,113140.0,0.29289042]
[1755852336898,1.6378137,113150.0,113140.0,0.31449042]
[1755852337610,1.35906328,113150.0,113140.0,0.31849042]
[1755852337906,1.6378137,113150.0,113140.0,0.31849042]
[1755852338303,1.35906328,113150.0,113140.0,0.07302]
[1755852338495,1.35906328,113150.0,113140.0,0.13518]
[1755852338699,1.35906328,113150.0,113140.0,0.16081]
[1755852339102,1.35906328,113150.0,113140.0,0.15781]
[1755852339408,1.35906328,113150.0,113140.0,0.439542]
[1755852340199,1.35906328,113150.0,113140.0,0.406262]
[1755852340400,1.35906328,113150.0,113140.0,0.347102]
[1755852341307,1.40325998,113150.0,113140.0,0.347102]
[1755852341801,1.40325998,113150.0,113140.0,0.385102]
[1755852343409,1.40325998,113150.0,113140.0,0.418382]
[1755852344405,1.68199198,113150.0,113140.0,0.007]
[1755852346298,1.40325998,113150.0,113140.0,0.02630705]
[1755852346505,1.68199198,113150.0,113140.0,0.02630705]
[1755852347008,1.40325998,113150.0,113140.0,0.02630705]
[1755852347307,1.68199198,113150.0,113140.0,0.02630705]
[1755852348805,1.80939198,113150.0,113140.0,0.02630705]
[1755852350710,1.53065998,113150.0,113140.0,0.02630705]
[1755852352009,2.17019198,113150.0,113140.0,0.02630705]
[1755852354615,2.17019198,113150.0,113140.0,0.007]
[1755852358620,1.89145998,113150.0,113140.0,0.007]
[1755852358819,2.17019198,113150.0,113140.0,0.007]
[1755852359617,2.17019198,113150.0,113140.0,0.003]
[1755852359919,2.17019198,113150.0,113120.0,0.371922]
[1755852360123,0.42359,113130.0,113120.0,0.432922]
[1755852360321,1.35546328,113130.0,113120.0,0.7117545]
[1755852362021,1.35546328,113130.0,113120.0,0.7137545]
[1755852362719,1.35546328,113130.0,113120.0,0.7117545]
[1755852362914,1.35546328,113130.0,113120.0,0.7137545]
[1755852363335,1.35546328,113130.0,113120.0,0.7157545]
[1755852363535,1.70355325,113130.0,113120.0,0.40217225]
[1755852363834,1.70355325,113130.0,113120.0,0.43697225]
[1755852366127,1.70355325,113130.0,113120.0,0.15819]
[1755852366328,1.70355325,113130.0,113120.0,0.43697225]
[1755852367938,1.70355325,113130.0,113120.0,0.7157545]
[1755852368128,1.70355325,113130.0,113120.0,0.15819]
[1755852368328,1.70355325,113130.0,113120.0,0.43697225]
[1755852370336,1.422931,113130.0,113120.0,0.43697225]
[1755852371027,1.422931,113130.0,113120.0,0.15819]
[1755852371232,1.422931,113130.0,113120.0,0.43697225]
[1755852371844,1.422771,113130.0,113120.0,0.7157545]
[1755852372736,0.603291,113130.0,113120.0,0.7157545]
[1755852372930,0.550251,113130.0,113120.0,1.08295175]
[1755852373140,0.90178328,113130.0,113120.0,1.08375175]
[1755852373534,0.90178328,113130.0,113120.0,0.8049695]
[1755852373935,0.08246328,113130.0,113120.0,0.8049695]
[1755852374337,0.08246328,113130.0,113120.0,0.52612464]
[1755852374528,0.08246328,113130.0,113120.0,0.43770964]
[1755852374732,0.11430328,113130.0,113120.0,0.43690964]
[1755852374938,0.17318328,113130.0,113120.0,0.43690964]
[1755852377243,0.17318328,113130.0,113120.0,0.15819]
[1755852377450,0.17318328,113130.0,113120.0,0.43690964]
[1755852380642,0.17308328,113130.0,113120.0,0.43490964]
[1755852380944,0.17308328,113130.0,113120.0,0.43590964]
[1755852381646,0.17308328,113130.0,113120.0,0.43490964]
[1755852386252,0.53388328,113130.0,113120.0,0.43503964]
[1755852388255,0.53388328,113130.0,113120.0,0.12139]
[1755852388548,0.81260292,113130.0,113120.0,0.002]
[1755852389747,0.81260292,113130.0,113120.0,0.0019]
[1755852390757,1.06260292,113130.0,113110.0,0.19502774]
[1755852390952,1.55136964,113120.0,113110.0,0.23074774]
[1755852391146,1.57104292,113120.0,113110.0,0.19581774]
[1755852391358,1.57104292,113120.0,113110.0,0.14033774]
[1755852392058,1.57104292,113120.0,113110.0,0.17454774]
[1755852392263,1.57104292,113120.0,113110.0,0.20947774]
[1755852393156,1.57104292,113120.0,113110.0,0.25634774]
[1755852393457,1.57104292,113120.0,113110.0,0.25834774]
[1755852393757,1.57104292,113120.0,113110.0,0.25734774]
[1755852393960,1.57104292,113120.0,113110.0,0.25534774]
[1755852394153,1.57204292,113120.0,113110.0,0.25534774]
[1755852394760,1.57204292,113120.0,113110.0,0.11843774]
[1755852394956,1.57204292,113120.0,113110.0,0.10461774]
[1755852397162,1.57204292,113120.0,113110.0,0.08506123]
[1755852397956,1.29332328,113120.0,113110.0,0.08506123]
[1755852398358,1.57204292,113120.0,113110.0,0.08506123]
[1755852399863,1.75084292,113120.0,113110.0,0.08506123]
[1755852408271,2.0300275,113120.0,113110.0,0.08506123]
[1755852408473,1.47212328,113120.0,113110.0,0.08506123]
[1755852408675,2.0300275,113120.0,113110.0,0.08506123]
[1755852411475,1.2070275,113120.0,113110.0,0.15513123]
[1755852411670,2.0264275,113120.0,113110.0,0.23203123]
[1755852412875,1.74747539,113120.0,113110.0,0.23203123]
[1755852413376,2.0264275,113120.0,113110.0,0.23203123]
[1755852413867,2.0264275,113120.0,113110.0,0.12142123]
[1755852414264,1.74743852,113120.0,113110.0,0.12142123]
[1755852415277,1.80644852,113120.0,113110.0,0.12142123]
[1755852415776,1.86989154,113120.0,113110.0,0.12142123]
[1755852419068,1.86989154,113120.0,113110.0,0.09898123]
[1755852419479,1.86989154,113120.0,113110.0,0.12142123]
[1755852420172,1.5909763,113120.0,113110.0,0.12142123]
[1755852420480,1.86989154,113120.0,113110.0,0.12142123]
[1755852420680,1.5909763,113120.0,113110.0,0.23203123]
[1755852420885,1.86989154,113120.0,113110.0,0.23203123]
[1755852421380,1.5909763,113120.0,113110.0,0.09898123]
[1755852421579,1.86989154,113120.0,113110.0,0.08506123]
[1755852422079,1.87004558,113120.0,113110.0,0.08506123]
[1755852422271,1.80644852,113120.0,113110.0,0.08506123]
[1755852424975,1.52753328,113120.0,113110.0,0.08506123]
[1755852425178,1.80644852,113120.0,113110.0,0.08506123]
[1755852425880,1.61427226,113120.0,113110.0,0.08506123]
[1755852426275,1.67789862,113120.0,113110.0,0.08506123]
[1755852428080,1.39898338,113120.0,113110.0,0.08506123]
[1755852428382,1.67789862,113120.0,113110.0,0.08506123]